[Event "*** Titled Tuesday Blitz"]
[Site "Chess.com"]
[Date "2019.02.05"]
[Round "3"]
[White "andy_rekt"]
[Black "NotFischer"]
[Result "0-1"]
[WhiteElo "2137"]
[BlackElo "2123"]
[TimeControl "180+2"]
[EndTime "13:36:06 PST"]
[Termination "NotFischer won on time"]

1. d4 {[%clk 0:03:01.9]} 1... Nf6 {[%clk 0:03:00.4]} 2. c4 {[%clk 0:03:03.8]}
2... e6 {[%clk 0:03:00.7]} 3. Nc3 {[%clk 0:03:05.4]} 3... d5 {[%clk 0:03:01.9]}
4. Nf3 {[%clk 0:03:05.1]} 4... Nbd7 {[%clk 0:03:02.8]} 5. Bf4 {[%clk 0:03:06.4]}
5... dxc4 {[%clk 0:03:03.3]} 6. e4 {[%clk 0:03:06.4]} 6... Bb4 {[%clk
0:03:04.2]} 7. Bxc4 {[%clk 0:03:05.9]} 7... Nxe4 {[%clk 0:03:03.5]} 8. O-O
{[%clk 0:03:07.5]} 8... Nxc3 {[%clk 0:02:49.6]} 9. bxc3 {[%clk 0:03:07.6]} 9...
Be7 {[%clk 0:02:49.3]} 10. Ne5 {[%clk 0:03:03.7]} 10... Nxe5 {[%clk 0:02:47.4]}
11. Bxe5 {[%clk 0:03:04.7]} 11... Bf6 {[%clk 0:02:48]} 12. Qg4 {[%clk
0:02:41.4]} 12... O-O {[%clk 0:02:41.5]} 13. Rad1 {[%clk 0:02:38.2]} 13... Bxe5
{[%clk 0:02:39.9]} 14. dxe5 {[%clk 0:02:38.9]} 14... Qe7 {[%clk 0:02:41.5]} 15.
Rd3 {[%clk 0:02:31.4]} 15... Bd7 {[%clk 0:02:18.1]} 16. Rg3 {[%clk 0:02:21.9]}
16... g6 {[%clk 0:02:06.7]} 17. Rh3 {[%clk 0:02:19.7]} 17... Kg7 {[%clk
0:02:02.3]} 18. Bd3 {[%clk 0:02:00.6]} 18... Rh8 {[%clk 0:01:47.9]} 19. Qf4
{[%clk 0:01:53.8]} 19... h5 {[%clk 0:01:46.6]} 20. Re1 {[%clk 0:01:35.4]} 20...
Bc6 {[%clk 0:01:46.8]} 21. Rg3 {[%clk 0:01:30.4]} 21... Rad8 {[%clk 0:01:19.7]}
22. h4 {[%clk 0:01:29.8]} 22... Rd5 {[%clk 0:00:48.4]} 23. Ree3 {[%clk 0:01:27]}
23... Ra5 {[%clk 0:00:42.7]} 24. Rg5 {[%clk 0:01:22.3]} 24... Be8 {[%clk
0:00:35.6]} 25. Reg3 {[%clk 0:01:13.6]} 25... Ra4 {[%clk 0:00:36.9]} 26. Qf3
{[%clk 0:01:08.5]} 26... Rxh4 {[%clk 0:00:31.9]} 27. Qxb7 {[%clk 0:01:07.6]}
27... Rg4 {[%clk 0:00:32.8]} 28. R5xg4 {[%clk 0:01:06]} 28... hxg4 {[%clk
0:00:34.7]} 29. Rxg4 {[%clk 0:01:03.6]} 29... Qc5 {[%clk 0:00:35.7]} 30. Qf3
{[%clk 0:00:37.5]} 30... Qxe5 {[%clk 0:00:34.5]} 31. g3 {[%clk 0:00:32.1]} 31...
Qe1+ {[%clk 0:00:34.4]} 32. Bf1 {[%clk 0:00:32]} 32... Bb5 {[%clk 0:00:32]} 33.
c4 {[%clk 0:00:32.8]} 33... Be8 {[%clk 0:00:30.7]} 34. Qd3 {[%clk 0:00:24.1]}
34... Qe5 {[%clk 0:00:29.4]} 35. Re4 {[%clk 0:00:21.1]} 35... Qf5 {[%clk
0:00:29.8]} 36. Qd4+ {[%clk 0:00:17]} 36... Qf6 {[%clk 0:00:31.1]} 37. Qxa7
{[%clk 0:00:15.2]} 37... Bc6 {[%clk 0:00:30.8]} 38. Rh4 {[%clk 0:00:14.3]} 38...
Rxh4 {[%clk 0:00:31.1]} 39. gxh4 {[%clk 0:00:15.7]} 39... Qf3 {[%clk 0:00:32.1]}
40. Qd4+ {[%clk 0:00:11.6]} 40... Kh7 {[%clk 0:00:33.5]} 0-1

[Event "*** Titled Tuesday Blitz"]
[Site "Chess.com"]
[Date "2019.02.05"]
[Round "3"]
[White "Mbneu"]
[Black "Nathan_Filgueiras"]
[Result "1-0"]
[WhiteElo "2254"]
[BlackElo "2255"]
[TimeControl "180+2"]
[EndTime "13:36:07 PST"]
[Termination "Mbneu won by resignation"]

1. d4 {[%clk 0:03:01.9]} 1... Nf6 {[%clk 0:02:59.1]} 2. c4 {[%clk 0:03:02.1]}
2... e6 {[%clk 0:02:59.7]} 3. Nc3 {[%clk 0:03:02.3]} 3... Bb4 {[%clk 0:02:59.3]}
4. Bg5 {[%clk 0:03:02.9]} 4... h6 {[%clk 0:02:51.5]} 5. Bh4 {[%clk 0:03:03]}
5... c5 {[%clk 0:02:50.4]} 6. d5 {[%clk 0:03:03.4]} 6... g5 {[%clk 0:02:28.6]}
7. Bg3 {[%clk 0:03:02.2]} 7... Ne4 {[%clk 0:02:28.9]} 8. Be5 {[%clk 0:02:55.8]}
8... f6 {[%clk 0:02:28]} 9. Qd3 {[%clk 0:02:57.3]} 9... fxe5 {[%clk 0:02:10.8]}
10. Qxe4 {[%clk 0:02:56.6]} 10... Qf6 {[%clk 0:02:08.8]} 11. Nf3 {[%clk
0:02:45.6]} 11... d6 {[%clk 0:02:05.6]} 12. e3 {[%clk 0:02:34.9]} 12... exd5
{[%clk 0:02:03.7]} 13. Qxd5 {[%clk 0:02:06.1]} 13... Nc6 {[%clk 0:01:51.8]} 14.
O-O-O {[%clk 0:02:01.4]} 14... Bxc3 {[%clk 0:01:50.9]} 15. bxc3 {[%clk
0:02:00.8]} 15... Be6 {[%clk 0:01:15.9]} 16. Qxd6 {[%clk 0:01:57.7]} 16... e4
{[%clk 0:01:02.1]} 17. Nd2 {[%clk 0:01:32.9]} 17... Qxc3+ {[%clk 0:00:42.8]} 18.
Kb1 {[%clk 0:01:30.6]} 18... Qb4+ {[%clk 0:00:38.2]} 19. Nb3 {[%clk 0:01:28.6]}
19... Kf7 {[%clk 0:00:38.5]} 20. Qxc5 {[%clk 0:01:14.5]} 20... Rhd8 {[%clk
0:00:31.5]} 21. Be2 {[%clk 0:01:09.2]} 21... Rac8 {[%clk 0:00:21.8]} 22. Rxd8
{[%clk 0:01:02.9]} 22... Rxd8 {[%clk 0:00:21.8]} 23. Qxb4 {[%clk 0:00:49.1]}
23... Nxb4 {[%clk 0:00:23.7]} 24. a3 {[%clk 0:00:44.2]} 24... Nd3 {[%clk
0:00:24.3]} 25. f3 {[%clk 0:00:39.3]} 25... exf3 {[%clk 0:00:22.7]} 26. gxf3
{[%clk 0:00:37.9]} 26... Bxc4 {[%clk 0:00:23.7]} 27. Nd4 {[%clk 0:00:38.1]}
27... Ba6 {[%clk 0:00:23.3]} 28. Rd1 {[%clk 0:00:31.1]} 28... Nc5 {[%clk
0:00:24]} 29. Bxa6 {[%clk 0:00:30.5]} 29... Nxa6 {[%clk 0:00:25.9]} 30. Rc1
{[%clk 0:00:31.2]} 30... Rd7 {[%clk 0:00:26.6]} 31. Rc4 {[%clk 0:00:31.2]} 31...
b6 {[%clk 0:00:25.4]} 32. Kc2 {[%clk 0:00:31.8]} 32... Nc5 {[%clk 0:00:26.3]}
33. Kc3 {[%clk 0:00:32.7]} 33... Kf6 {[%clk 0:00:26.3]} 34. e4 {[%clk
0:00:31.3]} 34... Rc7 {[%clk 0:00:26]} 35. Nb5 {[%clk 0:00:31.6]} 35... Rd7
{[%clk 0:00:26.1]} 36. Rd4 {[%clk 0:00:32.3]} 36... Rxd4 {[%clk 0:00:24.1]} 37.
Kxd4 {[%clk 0:00:33.2]} 37... a6 {[%clk 0:00:21.8]} 38. Nc7 {[%clk 0:00:33.1]}
38... h5 {[%clk 0:00:20]} 39. Nd5+ {[%clk 0:00:33.7]} 39... Kg6 {[%clk 0:00:21]}
40. Nxb6 {[%clk 0:00:35.3]} 40... g4 {[%clk 0:00:22.5]} 41. fxg4 {[%clk
0:00:35.4]} 41... Ne6+ {[%clk 0:00:23.1]} 42. Ke5 {[%clk 0:00:36.6]} 42... Ng5
{[%clk 0:00:22.6]} 43. gxh5+ {[%clk 0:00:37.4]} 43... Kxh5 {[%clk 0:00:24]} 44.
Kd5 {[%clk 0:00:37.5]} 1-0

[Event "*** Titled Tuesday Blitz"]
[Site "Chess.com"]
[Date "2019.02.05"]
[Round "3"]
[White "Lagravesamuell"]
[Black "Annawel"]
[Result "0-1"]
[WhiteElo "2459"]
[BlackElo "2940"]
[TimeControl "180+2"]
[EndTime "13:36:09 PST"]
[Termination "Annawel won by resignation"]

1. d4 {[%clk 0:02:51.8]} 1... d6 {[%clk 0:03:01.1]} 2. c4 {[%clk 0:02:51.1]}
2... e5 {[%clk 0:03:02.1]} 3. Nf3 {[%clk 0:02:49.7]} 3... e4 {[%clk 0:03:03]} 4.
Nfd2 {[%clk 0:02:49.6]} 4... f5 {[%clk 0:03:04.6]} 5. Nc3 {[%clk 0:02:47.9]}
5... Nf6 {[%clk 0:03:05.9]} 6. e3 {[%clk 0:02:49.1]} 6... Be7 {[%clk 0:03:06.7]}
7. g3 {[%clk 0:02:49.4]} 7... O-O {[%clk 0:03:03.1]} 8. Bg2 {[%clk 0:02:50.9]}
8... c5 {[%clk 0:03:04.6]} 9. O-O {[%clk 0:02:46.8]} 9... Nc6 {[%clk 0:03:04.9]}
10. Nb3 {[%clk 0:02:39.9]} 10... Bd7 {[%clk 0:03:02.4]} 11. f3 {[%clk
0:02:38.9]} 11... cxd4 {[%clk 0:03:01.5]} 12. exd4 {[%clk 0:02:37.4]} 12... exf3
{[%clk 0:03:02.5]} 13. Qxf3 {[%clk 0:02:36.6]} 13... Rc8 {[%clk 0:03:02.4]} 14.
Bf4 {[%clk 0:02:32.5]} 14... Nb4 {[%clk 0:02:43.2]} 15. Qe2 {[%clk 0:02:30.7]}
15... Re8 {[%clk 0:02:42.7]} 16. Rfd1 {[%clk 0:02:17.4]} 16... Bf8 {[%clk
0:02:42.6]} 17. Qf1 {[%clk 0:02:18.5]} 17... Bc6 {[%clk 0:02:42.6]} 18. d5
{[%clk 0:02:18.7]} 18... Qb6+ {[%clk 0:02:42.3]} 19. Kh1 {[%clk 0:02:18.8]}
19... Ng4 {[%clk 0:02:42.1]} 20. Rd2 {[%clk 0:02:17.3]} 20... Bd7 {[%clk
0:02:41.3]} 21. Nd4 {[%clk 0:02:00.3]} 21... Kh8 {[%clk 0:02:25.5]} 22. a3
{[%clk 0:01:38]} 22... Na6 {[%clk 0:02:26.3]} 23. b4 {[%clk 0:01:38.1]} 23...
Ne5 {[%clk 0:02:20.1]} 24. Bxe5 {[%clk 0:01:34.7]} 24... Rxe5 {[%clk 0:02:12.6]}
25. Nf3 {[%clk 0:01:32.7]} 25... Re3 {[%clk 0:02:13]} 26. Rc1 {[%clk 0:01:30.7]}
26... Rce8 {[%clk 0:02:12.3]} 27. Nd4 {[%clk 0:01:27.7]} 27... g6 {[%clk
0:02:10]} 28. Ncb5 {[%clk 0:01:11.3]} 28... Bg7 {[%clk 0:02:06.2]} 29. Rdd1
{[%clk 0:00:58.8]} 29... h5 {[%clk 0:01:54.9]} 30. Qf4 {[%clk 0:00:58.9]} 30...
R3e5 {[%clk 0:01:38.9]} 31. Nf3 {[%clk 0:00:51.8]} 31... Bxb5 {[%clk 0:01:40.3]}
32. cxb5 {[%clk 0:00:44.2]} 32... Re4 {[%clk 0:01:41.5]} 33. Qg5 {[%clk
0:00:43.6]} 33... Rg4 {[%clk 0:01:42.8]} 34. Qd2 {[%clk 0:00:37.3]} 34... Qxb5
{[%clk 0:01:44]} 35. Bf1 {[%clk 0:00:31.1]} 35... Qa4 {[%clk 0:01:45.1]} 36. Re1
{[%clk 0:00:29]} 36... Rge4 {[%clk 0:01:39.7]} 37. Bd3 {[%clk 0:00:25.3]} 37...
Rxe1+ {[%clk 0:01:19.4]} 38. Rxe1 {[%clk 0:00:25.6]} 38... Nc7 {[%clk
0:01:18.8]} 39. Nh4 {[%clk 0:00:20.9]} 39... Kh7 {[%clk 0:01:14.8]} 40. Rf1
{[%clk 0:00:20.6]} 40... Qb3 {[%clk 0:01:10.5]} 41. Nxg6 {[%clk 0:00:18.3]}
41... Qxd5+ {[%clk 0:01:11.1]} 42. Kg1 {[%clk 0:00:08.7]} 42... Bd4+ {[%clk
0:01:07.4]} 43. Rf2 {[%clk 0:00:09.3]} 43... Bxf2+ {[%clk 0:01:06.8]} 0-1

[Event "*** Titled Tuesday Blitz"]
[Site "Chess.com"]
[Date "2019.02.05"]
[Round "3"]
[White "djogrodek1"]
[Black "ezkybel"]
[Result "1-0"]
[WhiteElo "2416"]
[BlackElo "2268"]
[TimeControl "180+2"]
[EndTime "13:36:10 PST"]
[Termination "djogrodek1 won on time"]

1. c4 {[%clk 0:03:01.9]} 1... e5 {[%clk 0:03:00.4]} 2. g3 {[%clk 0:03:03]} 2...
Nf6 {[%clk 0:03:01.6]} 3. Bg2 {[%clk 0:03:04.4]} 3... Nc6 {[%clk 0:03:02.3]} 4.
Nc3 {[%clk 0:03:05.3]} 4... Bb4 {[%clk 0:03:03]} 5. Nd5 {[%clk 0:03:06.1]} 5...
O-O {[%clk 0:03:03.7]} 6. e3 {[%clk 0:03:07.5]} 6... Be7 {[%clk 0:03:04]} 7. Ne2
{[%clk 0:03:07.9]} 7... d6 {[%clk 0:03:03.7]} 8. O-O {[%clk 0:03:09.1]} 8...
Nxd5 {[%clk 0:03:04.5]} 9. cxd5 {[%clk 0:03:09.5]} 9... Nb8 {[%clk 0:03:05.7]}
10. d4 {[%clk 0:03:09.5]} 10... Nd7 {[%clk 0:03:05.3]} 11. b3 {[%clk 0:03:07.8]}
11... Bf6 {[%clk 0:03:02]} 12. Bb2 {[%clk 0:03:08.7]} 12... Re8 {[%clk
0:03:02.7]} 13. dxe5 {[%clk 0:03:09.2]} 13... Bxe5 {[%clk 0:02:55.9]} 14. Qd2
{[%clk 0:03:08.6]} 14... a5 {[%clk 0:02:35.7]} 15. Rac1 {[%clk 0:03:07.7]} 15...
Nc5 {[%clk 0:02:33.8]} 16. Rc4 {[%clk 0:02:58]} 16... b5 {[%clk 0:02:28.3]} 17.
Rcc1 {[%clk 0:02:52]} 17... b4 {[%clk 0:02:25.5]} 18. Nd4 {[%clk 0:02:52.4]}
18... Bd7 {[%clk 0:02:02.4]} 19. e4 {[%clk 0:02:32.2]} 19... Bxd4 {[%clk
0:01:31.9]} 20. Qxd4 {[%clk 0:02:26.1]} 20... f6 {[%clk 0:00:59.1]} 21. Rfe1
{[%clk 0:01:28.2]} 21... Bb5 {[%clk 0:00:53.6]} 22. Rcd1 {[%clk 0:01:21.8]}
22... Qd7 {[%clk 0:00:44.8]} 23. f4 {[%clk 0:01:18.5]} 23... a4 {[%clk
0:00:32.9]} 24. bxa4 {[%clk 0:00:55.3]} 24... Rxa4 {[%clk 0:00:32.4]} 25. e5
{[%clk 0:00:48.5]} 25... fxe5 {[%clk 0:00:28.8]} 26. fxe5 {[%clk 0:00:47.7]}
26... b3 {[%clk 0:00:30.3]} 27. Qc3 {[%clk 0:00:46.1]} 27... Rxa2 {[%clk
0:00:27.1]} 28. exd6 {[%clk 0:00:41]} 28... Rxe1+ {[%clk 0:00:18.7]} 29. Rxe1
{[%clk 0:00:42.9]} 29... Rxb2 {[%clk 0:00:16.3]} 30. dxc7 {[%clk 0:00:08.5]}
30... Rxg2+ {[%clk 0:00:12.5]} 31. Kxg2 {[%clk 0:00:10.4]} 31... Qxd5+ {[%clk
0:00:13.6]} 32. Qf3 {[%clk 0:00:09.4]} 32... Qxf3+ {[%clk 0:00:08.9]} 33. Kxf3
{[%clk 0:00:11.3]} 33... Bc6+ {[%clk 0:00:10.3]} 34. Ke3 {[%clk 0:00:10.9]}
34... Bb7 {[%clk 0:00:07.1]} 35. Kd4 {[%clk 0:00:10.7]} 35... Nd7 {[%clk
0:00:04.3]} 36. Rb1 {[%clk 0:00:10]} 1-0

[Event "*** Titled Tuesday Blitz"]
[Site "Chess.com"]
[Date "2019.02.05"]
[Round "3"]
[White "Fenil1995"]
[Black "twitchTriniCupid"]
[Result "1-0"]
[WhiteElo "2191"]
[BlackElo "2243"]
[TimeControl "180+2"]
[EndTime "13:36:11 PST"]
[Termination "Fenil1995 won on time"]

1. d4 {[%clk 0:03:01.9]} 1... Nf6 {[%clk 0:03:00.7]} 2. Nf3 {[%clk 0:03:01.4]}
2... e6 {[%clk 0:03:00.4]} 3. g3 {[%clk 0:02:58.6]} 3... b6 {[%clk 0:03:01.1]}
4. Bg2 {[%clk 0:02:57.1]} 4... c6 {[%clk 0:02:55.3]} 5. O-O {[%clk 0:02:55.7]}
5... d5 {[%clk 0:02:55.9]} 6. b3 {[%clk 0:02:49.8]} 6... Be7 {[%clk 0:02:49.8]}
7. Bb2 {[%clk 0:02:51.7]} 7... O-O {[%clk 0:02:50.7]} 8. Nbd2 {[%clk 0:02:49.8]}
8... Ba6 {[%clk 0:02:49.4]} 9. c4 {[%clk 0:02:47.7]} 9... Nbd7 {[%clk
0:02:43.1]} 10. Rc1 {[%clk 0:02:44.9]} 10... Rc8 {[%clk 0:02:43.1]} 11. Ne5
{[%clk 0:02:45.7]} 11... Nxe5 {[%clk 0:02:42.2]} 12. dxe5 {[%clk 0:02:47.6]}
12... Nd7 {[%clk 0:02:42.9]} 13. f4 {[%clk 0:02:42.9]} 13... Nc5 {[%clk
0:02:15.7]} 14. Qc2 {[%clk 0:02:24.6]} 14... dxc4 {[%clk 0:02:03.3]} 15. Nxc4
{[%clk 0:02:22]} 15... Qc7 {[%clk 0:01:40.1]} 16. e3 {[%clk 0:02:13.6]} 16...
Rcd8 {[%clk 0:01:27.9]} 17. Bd4 {[%clk 0:02:02.1]} 17... Nd7 {[%clk 0:01:16]}
18. Rfd1 {[%clk 0:01:54]} 18... c5 {[%clk 0:01:10.7]} 19. Ba1 {[%clk 0:01:52.8]}
19... Nb8 {[%clk 0:01:07.1]} 20. f5 {[%clk 0:01:37.7]} 20... exf5 {[%clk
0:00:47.9]} 21. Qxf5 {[%clk 0:01:39.6]} 21... Nc6 {[%clk 0:00:35.9]} 22. e6
{[%clk 0:01:10.4]} 22... f6 {[%clk 0:00:27.9]} 23. Rd7 {[%clk 0:01:09]} 23...
Rxd7 {[%clk 0:00:27.7]} 24. exd7 {[%clk 0:01:10.9]} 24... Kh8 {[%clk 0:00:20.3]}
25. Qe6 {[%clk 0:01:09.9]} 25... Bb7 {[%clk 0:00:20.1]} 26. Bxc6 {[%clk
0:01:09]} 26... Bxc6 {[%clk 0:00:20.5]} 27. Qxe7 {[%clk 0:01:08.2]} 27... Qd8
{[%clk 0:00:21.9]} 28. Qd6 {[%clk 0:00:54.4]} 28... Bxd7 {[%clk 0:00:14.8]} 29.
Rd1 {[%clk 0:00:55]} 29... Qe8 {[%clk 0:00:14]} 30. Qxd7 {[%clk 0:00:55.2]}
30... Qh5 {[%clk 0:00:15.9]} 31. Qd6 {[%clk 0:00:52.1]} 31... Re8 {[%clk
0:00:15.2]} 32. Rd2 {[%clk 0:00:45.2]} 32... Qf5 {[%clk 0:00:14.7]} 33. Qd7
{[%clk 0:00:40.7]} 33... Qg6 {[%clk 0:00:10]} 34. Nd6 {[%clk 0:00:35.9]} 34...
Rf8 {[%clk 0:00:10.2]} 35. Nf5 {[%clk 0:00:36.7]} 35... h6 {[%clk 0:00:08.6]}
36. Qe7 {[%clk 0:00:32.6]} 36... Rg8 {[%clk 0:00:04.5]} 37. Qe6 {[%clk
0:00:28.1]} 37... Re8 {[%clk 0:00:03.5]} 38. Qd7 {[%clk 0:00:23.6]} 38... Kh7
{[%clk 0:00:03.1]} 39. Nxg7 {[%clk 0:00:22.5]} 1-0

[Event "*** Titled Tuesday Blitz"]
[Site "Chess.com"]
[Date "2019.02.05"]
[Round "3"]
[White "AndrewMcStone"]
[Black "Perecke"]
[Result "0-1"]
[WhiteElo "2120"]
[BlackElo "2053"]
[TimeControl "180+2"]
[EndTime "13:36:14 PST"]
[Termination "Perecke won on time"]

1. d4 {[%clk 0:03:01.9]} 1... d5 {[%clk 0:02:51]} 2. c4 {[%clk 0:03:01.1]} 2...
e6 {[%clk 0:02:51.2]} 3. Nc3 {[%clk 0:03:02.5]} 3... Nf6 {[%clk 0:02:50.5]} 4.
cxd5 {[%clk 0:03:03.9]} 4... exd5 {[%clk 0:02:50.3]} 5. Bg5 {[%clk 0:03:04.9]}
5... Be7 {[%clk 0:02:44]} 6. e3 {[%clk 0:03:05.8]} 6... O-O {[%clk 0:02:44.4]}
7. Bd3 {[%clk 0:03:05.5]} 7... c6 {[%clk 0:02:45.3]} 8. Qc2 {[%clk 0:03:06.2]}
8... h6 {[%clk 0:02:45.9]} 9. Bh4 {[%clk 0:03:06.6]} 9... Re8 {[%clk 0:02:47.2]}
10. Nge2 {[%clk 0:03:07.4]} 10... Ne4 {[%clk 0:02:47.8]} 11. Bxe7 {[%clk
0:02:46]} 11... Qxe7 {[%clk 0:02:49.7]} 12. O-O {[%clk 0:02:33.2]} 12... Bf5
{[%clk 0:02:05.8]} 13. Rae1 {[%clk 0:02:13.9]} 13... Bg6 {[%clk 0:02:05]} 14.
Nf4 {[%clk 0:02:04.7]} 14... Nxc3 {[%clk 0:01:50.8]} 15. Nxg6 {[%clk 0:01:50.8]}
15... fxg6 {[%clk 0:01:50.1]} 16. bxc3 {[%clk 0:01:45.1]} 16... g5 {[%clk
0:01:50.3]} 17. Bh7+ {[%clk 0:01:37.9]} 17... Kh8 {[%clk 0:01:48.9]} 18. Bg6
{[%clk 0:01:25.5]} 18... Rf8 {[%clk 0:01:49.3]} 19. e4 {[%clk 0:01:24.5]} 19...
dxe4 {[%clk 0:01:43.8]} 20. Bxe4 {[%clk 0:01:11.4]} 20... Qc7 {[%clk 0:01:26.2]}
21. Bf5 {[%clk 0:01:02.9]} 21... Na6 {[%clk 0:01:17.5]} 22. Re5 {[%clk
0:00:54.9]} 22... Rae8 {[%clk 0:01:08.5]} 23. Rfe1 {[%clk 0:00:54.9]} 23... Rxe5
{[%clk 0:01:09.3]} 24. Rxe5 {[%clk 0:00:44.8]} 24... c5 {[%clk 0:01:09.6]} 25.
Bd3 {[%clk 0:00:14.3]} 25... cxd4 {[%clk 0:01:07.2]} 26. cxd4 {[%clk 0:00:16.2]}
26... Qxc2 {[%clk 0:01:03.7]} 27. Bxc2 {[%clk 0:00:18.1]} 27... Rc8 {[%clk
0:01:04.5]} 28. Re2 {[%clk 0:00:07.5]} 28... Nb4 {[%clk 0:01:03.8]} 29. Bd1
{[%clk 0:00:05.7]} 29... Rc1 {[%clk 0:01:03.5]} 30. Rd2 {[%clk 0:00:05.9]} 30...
Nd5 {[%clk 0:01:03.1]} 31. Kf1 {[%clk 0:00:06.1]} 31... Kg8 {[%clk 0:01:00.4]}
32. Ke1 {[%clk 0:00:06.4]} 32... Kf7 {[%clk 0:01:00.3]} 33. Rc2 {[%clk
0:00:06.8]} 33... Rxc2 {[%clk 0:00:52.2]} 34. Bxc2 {[%clk 0:00:08.7]} 34... Ke7
{[%clk 0:00:50.8]} 35. Bb3 {[%clk 0:00:09.3]} 35... Kd6 {[%clk 0:00:50.2]} 36.
Kd2 {[%clk 0:00:08.2]} 36... Nf6 {[%clk 0:00:48.1]} 37. f3 {[%clk 0:00:07]}
37... Nh5 {[%clk 0:00:43.2]} 38. Ke3 {[%clk 0:00:06.1]} 38... Nf4 {[%clk
0:00:43.7]} 39. g3 {[%clk 0:00:07.5]} 39... Nd5+ {[%clk 0:00:40.6]} 40. Kd3
{[%clk 0:00:05.4]} 40... b5 {[%clk 0:00:37.1]} 0-1

[Event "*** Titled Tuesday Blitz"]
[Site "Chess.com"]
[Date "2019.02.05"]
[Round "3"]
[White "GataKamsky1974"]
[Black "Peng_Li-Min"]
[Result "1/2-1/2"]
[WhiteElo "2728"]
[BlackElo "2680"]
[TimeControl "180+2"]
[EndTime "13:36:30 PST"]
[Termination "Game drawn by agreement"]

1. d4 {[%clk 0:03:01.9]} 1... Nf6 {[%clk 0:02:57.8]} 2. Nf3 {[%clk 0:03:03.4]}
2... g6 {[%clk 0:02:56.4]} 3. Bf4 {[%clk 0:03:05]} 3... Bg7 {[%clk 0:02:57.2]}
4. c3 {[%clk 0:03:06.6]} 4... O-O {[%clk 0:02:58.2]} 5. h3 {[%clk 0:03:07.9]}
5... d6 {[%clk 0:03:00.1]} 6. Nbd2 {[%clk 0:03:09.2]} 6... Nc6 {[%clk
0:03:01.4]} 7. e4 {[%clk 0:03:09.5]} 7... Nh5 {[%clk 0:02:59.2]} 8. Bg5 {[%clk
0:03:07.7]} 8... h6 {[%clk 0:02:53.1]} 9. Be3 {[%clk 0:03:08.6]} 9... e5 {[%clk
0:02:53]} 10. dxe5 {[%clk 0:03:06.9]} 10... Nxe5 {[%clk 0:02:53.5]} 11. Be2
{[%clk 0:03:07.7]} 11... Nxf3+ {[%clk 0:02:51.8]} 12. Bxf3 {[%clk 0:03:07.2]}
12... Nf6 {[%clk 0:02:53.7]} 13. O-O {[%clk 0:03:07.3]} 13... Re8 {[%clk
0:02:54.6]} 14. Re1 {[%clk 0:03:01.2]} 14... Nd7 {[%clk 0:02:51.7]} 15. Bd4
{[%clk 0:03:00.7]} 15... Nc5 {[%clk 0:02:44.8]} 16. Nb3 {[%clk 0:02:59]} 16...
Nxb3 {[%clk 0:02:37.6]} 17. Qxb3 {[%clk 0:02:59.4]} 17... Qg5 {[%clk 0:02:09]}
18. Be3 {[%clk 0:02:35]} 18... Qa5 {[%clk 0:02:09.1]} 19. a4 {[%clk 0:02:31.1]}
19... Re7 {[%clk 0:01:42.4]} 20. Red1 {[%clk 0:02:16.6]} 20... Qe5 {[%clk
0:01:34.9]} 21. a5 {[%clk 0:02:10.7]} 21... a6 {[%clk 0:01:29.8]} 22. Qb4 {[%clk
0:02:05]} 22... Qb5 {[%clk 0:01:28.5]} 23. Qa3 {[%clk 0:01:44.9]} 23... Be6
{[%clk 0:01:25]} 24. Rd2 {[%clk 0:01:34.4]} 24... Rae8 {[%clk 0:01:17]} 25. Rc1
{[%clk 0:01:21.6]} 25... Bc4 {[%clk 0:01:16.9]} 26. Bd1 {[%clk 0:01:09.7]} 26...
Qd7 {[%clk 0:00:54.6]} 27. Ba4 {[%clk 0:01:04.6]} 27... Bb5 {[%clk 0:00:55]} 28.
Bxb5 {[%clk 0:00:49.1]} 28... Qxb5 {[%clk 0:00:56.9]} 29. f3 {[%clk 0:00:49.8]}
29... f5 {[%clk 0:00:55.3]} 30. c4 {[%clk 0:00:50.8]} 30... Qc6 {[%clk
0:00:55.4]} 31. b4 {[%clk 0:00:51.6]} 31... fxe4 {[%clk 0:00:53.4]} 32. f4
{[%clk 0:00:52.9]} 32... Rf7 {[%clk 0:00:48.9]} 33. Qb3 {[%clk 0:00:54.1]} 33...
Kh7 {[%clk 0:00:48.9]} 34. Rdd1 {[%clk 0:00:53.3]} 34... Qd7 {[%clk 0:00:41.6]}
35. b5 {[%clk 0:00:52.4]} 35... Qc8 {[%clk 0:00:38.7]} 36. c5 {[%clk 0:00:52.4]}
36... Rd7 {[%clk 0:00:39.6]} 37. cxd6 {[%clk 0:00:51.7]} 37... axb5 {[%clk
0:00:38.5]} 38. Qxb5 {[%clk 0:00:48.7]} 38... c6 {[%clk 0:00:39.6]} 39. Qc4
{[%clk 0:00:47.3]} 39... Qd8 {[%clk 0:00:39.1]} 40. Qb4 {[%clk 0:00:44.9]} 40...
Qa8 {[%clk 0:00:37.1]} 41. Rc4 {[%clk 0:00:44.9]} 41... Bf8 {[%clk 0:00:35]} 42.
Rxe4 {[%clk 0:00:43.1]} 42... Bxd6 {[%clk 0:00:32.6]} 43. Qc4 {[%clk 0:00:21.7]}
43... Rxe4 {[%clk 0:00:33.4]} 44. Qxe4 {[%clk 0:00:22]} 44... Re7 {[%clk
0:00:35.3]} 45. Qd3 {[%clk 0:00:21.4]} 45... Bc7 {[%clk 0:00:36.7]} 46. f5
{[%clk 0:00:22.7]} 46... Qe8 {[%clk 0:00:35.9]} 47. fxg6+ {[%clk 0:00:21.6]}
47... Qxg6 {[%clk 0:00:37.2]} 48. Qxg6+ {[%clk 0:00:22.3]} 48... Kxg6 {[%clk
0:00:39.1]} 49. Bc5 {[%clk 0:00:23.2]} 49... Rf7 {[%clk 0:00:36.3]} 1/2-1/2